bitfinex/quotes_SOLUSD_20250529
["timestamp","ask_amount","ask_price","bid_price","bid_amount"]
[1748530999177,20.98995552,170.88,170.82,10.92]
[1748530999387,147.3,170.89,170.82,20.98995552]
[1748530999697,20.98995552,170.83,170.79,20.98995552]
[1748530999905,20.98995552,170.84,170.79,20.98995552]
[1748531000505,20.98995552,170.84,170.76,20.07397372]
[1748531000506,20.98995552,170.82,170.78,20.98995552]
[1748531000663,20.98995552,170.82,170.77,20.98995552]
[1748531001065,1.5228,170.86,170.79,20.98995552]
[1748531001280,20.98995552,170.84,170.79,20.98995552]
[1748531001689,20.98995552,170.83,170.79,20.98995552]
[1748531001922,20.98995552,170.83,170.78,20.98995552]
[1748531002399,1.5228,170.86,170.78,20.98995552]
[1748531002573,20.98995552,170.84,170.79,20.98995552]
[1748531003469,20.98995552,170.84,170.76,42.79610525]
[1748531003671,20.98995552,170.83,170.78,20.98995552]
[1748531003879,20.98995552,170.82,170.77,20.98995552]
[1748531004070,20.98995552,170.83,170.78,20.98995552]
[1748531004695,20.98995552,170.84,170.79,20.98995552]
[1748531005463,1.5228,170.86,170.78,20.98995552]
[1748531005665,20.98995552,170.83,170.79,20.98995552]
[1748531005995,20.98995552,170.84,170.8,20.98995552]
[1748531006393,147.3,170.83,170.79,20.98995552]
[1748531006598,147.3,170.83,170.76,42.79614592]
[1748531006797,168.28995552,170.83,170.79,20.98995552]
[1748531007596,20.98995552,170.82,170.76,36.94]
[1748531007797,20.98995552,170.8,170.76,46.98995552]
[1748531008000,20.98995552,170.8,170.72,15.15274322]
[1748531008001,20.98995552,170.8,170.75,20.98995552]
[1748531008182,20.98995552,170.8,170.74,26.0]
[1748531008183,20.98995552,170.79,170.74,46.98995552]
[1748531008499,147.3,170.81,170.74,20.98995552]
[1748531008705,20.98995552,170.79,170.74,20.98995552]
[1748531008910,20.98995552,170.78,170.74,20.98995552]
[1748531009108,147.3,170.81,170.73,20.98995552]
[1748531009109,20.98995552,170.77,170.73,20.98995552]
[1748531010174,20.98995552,170.75,170.71,26.0]
[1748531010982,147.3,170.78,170.72,20.98995552]
[1748531011395,20.98995552,170.77,170.71,26.0]
[1748531011596,20.98995552,170.76,170.71,46.98995552]
[1748531012406,20.98995552,170.75,170.7,20.98995552]
[1748531013598,20.98995552,170.73,170.68,20.98995552]
[1748531013813,20.98995552,170.73,170.67,26.0]
[1748531014109,20.98995552,170.72,170.67,20.98995552]
[1748531014283,20.98995552,170.72,170.67,46.98995552]
[1748531014802,20.98995552,170.72,170.67,20.98995552]
[1748531015181,20.98995552,170.71,170.67,20.98995552]
[1748531015400,185.84,170.74,170.63,7.39300918]
[1748531015401,20.98995552,170.7,170.65,20.98995552]
[1748531015792,6.5035,170.73,170.63,27.5325]
[1748531015793,20.98995552,170.69,170.64,20.98995552]
[1748531016322,20.98995552,170.69,170.59,1.6127]
[1748531016323,20.98995552,170.66,170.59,1.6127]
[1748531016526,20.98995552,170.66,170.61,20.98995552]
[1748531017004,20.98995552,170.67,170.62,20.98995552]
[1748531017205,38.54,170.69,170.63,20.98995552]
[1748531017379,20.98995552,170.68,170.64,20.98995552]
[1748531017583,20.98995552,170.67,170.62,20.98995552]
[1748531017785,20.98995552,170.67,170.63,20.98995552]
[1748531018003,20.98995552,170.68,170.63,20.98995552]
[1748531018506,38.54,170.69,170.63,20.98995552]
[1748531018695,20.98995552,170.68,170.63,20.98995552]
[1748531018898,20.98995552,170.67,170.59,33.4746212]
[1748531019090,20.98995552,170.67,170.63,20.98995552]
[1748531020395,20.98995552,170.67,170.62,20.98995552]
[1748531020895,20.98995552,170.66,170.62,20.98995552]
[1748531021435,20.98995552,170.65,170.6,20.98995552]
[1748531021588,20.98995552,170.65,170.61,20.98995552]
[1748531021990,20.98995552,170.66,170.62,20.98995552]
[1748531022719,20.98995552,170.66,170.61,20.98995552]
[1748531024206,20.98995552,170.66,170.62,20.98995552]
[1748531024712,147.3,170.68,170.62,20.98995552]
[1748531024919,20.98995552,170.66,170.62,20.98995552]
[1748531026824,20.98995552,170.66,170.59,31.86198647]
[1748531026994,20.98995552,170.66,170.62,20.98995552]
[1748531027703,20.98995552,170.66,170.61,20.98995552]
[1748531029035,147.3,170.68,170.61,20.98995552]
[1748531029232,20.98995552,170.66,170.61,20.98995552]
[1748531029558,20.98995552,170.65,170.61,20.98995552]
[1748531029756,147.3,170.68,170.61,20.98995552]
[1748531030064,20.98995552,170.66,170.61,20.98995552]
[1748531030570,20.98995552,170.65,170.6,20.98995552]
[1748531031034,20.98995552,170.65,170.61,20.98995552]
[1748531031233,20.98995552,170.65,170.57,26.0]
[1748531031553,20.98995552,170.65,170.57,31.8624878]
[1748531031848,20.98995552,170.66,170.61,20.98995552]
[1748531032048,168.28995552,170.66,170.61,20.98995552]
[1748531032241,147.3,170.66,170.61,20.98995552]
[1748531032442,168.28995552,170.66,170.62,20.98995552]
[1748531032825,147.3,170.66,170.62,20.98995552]
[1748531033222,147.3,170.66,170.57,34.80557365]
[1748531033554,147.3,170.66,170.62,20.98995552]
[1748531034748,168.28995552,170.66,170.62,20.98995552]
[1748531035826,147.3,170.66,170.62,20.98995552]
[1748531036031,147.3,170.66,170.57,47.59273471]
[1748531036032,147.3,170.66,170.63,20.98995552]
[1748531037156,147.3,170.66,170.62,20.98995552]
[1748531037960,168.28995552,170.66,170.62,20.98995552]
[1748531040070,147.3,170.66,170.62,20.98995552]
[1748531040364,20.98995552,170.67,170.62,20.98995552]
[1748531040830,20.98995552,170.67,170.58,24.51190888]
[1748531041025,20.98995552,170.66,170.57,28.94308585]
[1748531041261,20.98995552,170.66,170.61,20.98995552]
[1748531041759,20.98995552,170.65,170.61,20.98995552]
[1748531042067,20.98995552,170.65,170.59,26.0]
[1748531042243,20.98995552,170.65,170.56,86.81276946]
[1748531042244,20.98995552,170.64,170.56,19.1104]
[1748531042556,20.98995552,170.62,170.58,20.98995552]
[1748531042764,38.5,170.65,170.61,20.98995552]
[1748531042961,147.3,170.66,170.64,20.98995552]
[1748531043136,206.78995552,170.7,170.65,20.98995552]
[1748531043569,20.98995552,170.69,170.64,20.98995552]
[1748531043750,20.98995552,170.67,170.62,20.98995552]
[1748531044079,20.98995552,170.66,170.62,20.98995552]
[1748531044431,185.8,170.7,170.63,20.98995552]
[1748531044654,20.98995552,170.68,170.63,20.98995552]
[1748531044842,20.98995552,170.67,170.62,20.98995552]
[1748531045443,20.98995552,170.65,170.6,20.98995552]
[1748531045760,20.98995552,170.62,170.56,19.1104]
[1748531046056,38.5,170.65,170.6,20.98995552]
[1748531046261,59.48995552,170.65,170.6,20.98995552]
[1748531047650,20.98995552,170.64,170.6,20.98995552]
[1748531047838,20.98995552,170.64,170.56,38.4955]
[1748531048172,20.98995552,170.63,170.58,20.98995552]
[1748531048752,20.98995552,170.63,170.56,27.5955]
[1748531048950,20.98995552,170.63,170.58,20.98995552]
[1748531049271,147.3,170.64,170.57,20.98995552]
[1748531049470,20.98995552,170.6,170.56,20.98995552]
[1748531049647,147.3,170.64,170.56,20.98995552]
[1748531049854,20.98995552,170.61,170.56,20.98995552]
[1748531050168,20.98995552,170.6,170.56,20.98995552]
[1748531050372,20.98995552,170.6,170.55,20.98995552]
[1748531050537,153.16089738,170.63,170.52,7.8017]
[1748531050748,20.98995552,170.6,170.55,20.98995552]
[1748531050950,38.48,170.6,170.56,20.98995552]
[1748531051251,59.46995552,170.6,170.56,20.98995552]
[1748531051448,38.48,170.62,170.58,20.98995552]
[1748531051650,147.3,170.63,170.59,20.98995552]
[1748531051849,20.98995552,170.64,170.6,20.98995552]
[1748531051850,59.46995552,170.64,170.6,20.98995552]
[1748531052067,10.88,170.66,170.62,20.98995552]
[1748531052450,20.98995552,170.64,170.6,20.98995552]
[1748531052864,20.98995552,170.64,170.55,52.85300493]
[1748531052865,20.98995552,170.64,170.55,31.86304941]
[1748531053071,20.98995552,170.64,170.55,52.85300493]
[1748531053381,20.98995552,170.63,170.58,20.98995552]
[1748531053678,10.88,170.66,170.6,20.98995552]
[1748531053978,10.88,170.66,170.61,20.98995552]
[1748531054276,31.86995552,170.66,170.56,18.64964886]
[1748531054493,31.86995552,170.66,170.61,20.98995552]
[1748531055179,70.34995552,170.66,170.61,20.98995552]
[1748531055377,20.98995552,170.65,170.6,20.98995552]
[1748531055982,20.98995552,170.65,170.61,20.98995552]
[1748531057082,49.36,170.66,170.61,20.98995552]
[1748531057271,31.86995552,170.66,170.61,20.98995552]
[1748531057575,20.98995552,170.65,170.61,20.98995552]
[1748531057756,20.98995552,170.65,170.6,20.98995552]
[1748531057961,49.36,170.66,170.61,20.98995552]
[1748531058154,70.34995552,170.66,170.61,20.98995552]
[1748531058567,10.88,170.66,170.63,20.98995552]
[1748531058766,49.36,170.66,170.64,20.98995552]
[1748531058973,49.36,170.66,170.63,20.98995552]
[1748531059179,38.48,170.66,170.63,20.98995552]
[1748531059585,185.78,170.66,170.63,20.98995552]
[1748531059784,185.78,170.66,170.62,20.98995552]
[1748531060989,147.3,170.66,170.62,20.98995552]
[1748531061284,168.28995552,170.66,170.62,20.98995552]
[1748531062393,168.28995552,170.66,170.59,1.6396]
[1748531062587,20.98995552,170.65,170.6,20.98995552]
[1748531063000,59.44995552,170.65,170.6,20.98995552]
[1748531063582,38.46,170.65,170.61,20.98995552]
[1748531063810,59.44995552,170.65,170.61,20.98995552]
[1748531064608,59.44995552,170.65,170.59,26.0]
[1748531064779,59.44995552,170.65,170.61,20.98995552]
[1748531064965,38.46,170.65,170.61,20.98995552]
[1748531065270,147.3,170.66,170.63,20.98995552]
[1748531065475,185.76,170.66,170.63,20.98995552]
[1748531065790,185.76,170.66,170.62,20.98995552]
[1748531065987,185.76,170.66,170.59,26.0]
[1748531066192,185.76,170.66,170.64,20.98995552]
[1748531066401,147.3,170.66,170.64,20.98995552]
[1748531068077,147.3,170.66,170.6,5.86152975]
[1748531068366,147.3,170.66,170.64,20.98995552]
[1748531069002,38.46,170.68,170.64,20.98995552]
[1748531069361,59.44995552,170.68,170.64,20.98995552]
[1748531069790,59.42995552,170.68,170.64,20.98995552]
[1748531069975,59.42995552,170.68,170.63,20.98995552]
[1748531070161,59.42995552,170.68,170.59,38.30877594]
[1748531070360,20.98995552,170.66,170.61,20.98995552]
[1748531070990,44.8622,170.7,170.64,20.98995552]
[1748531071172,147.3,170.69,170.65,20.98995552]
[1748531071375,147.3,170.69,170.66,20.98995552]
[1748531071988,147.3,170.69,170.67,20.98995552]
[1748531072289,38.44,170.71,170.68,20.98995552]
[1748531072586,38.44,170.71,170.67,20.98995552]
[1748531072804,159.7693,170.74,170.68,20.98995552]
[1748531072999,159.7693,170.74,170.64,26.0]
[1748531073000,38.44,170.73,170.69,20.98995552]
[1748531073709,59.42995552,170.73,170.69,20.98995552]
[1748531073875,20.98995552,170.7,170.64,46.98995552]
[1748531074073,44.29720142,170.73,170.64,46.98995552]
[1748531074279,20.98995552,170.69,170.64,26.0]
[1748531074493,20.98995552,170.69,170.64,46.98995552]
[1748531074494,59.42995552,170.69,170.64,46.98995552]
[1748531074704,38.44,170.69,170.65,20.98995552]
[1748531075283,59.42995552,170.69,170.64,20.98995552]
[1748531075605,38.44,170.69,170.65,20.98995552]
[1748531076308,59.42995552,170.69,170.64,20.98995552]
[1748531076612,38.44,170.69,170.66,20.98995552]
[1748531077514,38.44,170.69,170.63,26.0]
[1748531077727,38.44,170.69,170.65,20.98995552]
[1748531077886,38.44,170.69,170.66,20.98995552]
[1748531079081,59.42995552,170.69,170.63,26.0]
[1748531079300,59.42995552,170.69,170.64,20.98995552]
[1748531079585,38.44,170.69,170.65,20.98995552]
[1748531079914,38.44,170.69,170.66,20.98995552]
[1748531080695,38.44,170.69,170.65,20.98995552]
[1748531081715,20.98995552,170.7,170.65,20.98995552]
[1748531082027,38.42,170.7,170.66,20.98995552]
[1748531082204,38.42,170.7,170.63,26.0]
[1748531082405,38.42,170.7,170.67,20.98995552]
[1748531082993,38.42,170.7,170.63,26.0]
[1748531083194,38.42,170.7,170.64,26.0]
[1748531083393,38.42,170.7,170.66,20.98995552]
[1748531085397,59.40995552,170.7,170.65,20.98995552]
[1748531085929,20.98995552,170.69,170.64,46.98995552]
[1748531086292,20.98995552,170.69,170.65,20.98995552]
[1748531086499,20.98995552,170.69,170.64,26.0]
[1748531086799,20.98995552,170.69,170.64,46.98995552]
[1748531086991,20.98995552,170.69,170.65,20.98995552]
[1748531087496,59.40995552,170.7,170.65,20.98995552]
[1748531087709,59.40995552,170.7,170.66,20.98995552]
[1748531087995,59.40995552,170.7,170.64,26.0]
[1748531088200,59.40995552,170.7,170.66,20.98995552]
[1748531089203,59.40995552,170.7,170.65,20.98995552]
[1748531089402,59.40995552,170.7,170.64,26.0]
[1748531089603,59.40995552,170.7,170.65,20.98995552]
[1748531089812,20.98995552,170.69,170.65,20.98995552]
[1748531090705,38.42,170.7,170.61,1.6012]
[1748531090923,20.98995552,170.67,170.63,20.98995552]
[1748531091127,20.98995552,170.68,170.63,20.98995552]
[1748531091430,20.98995552,170.65,170.61,20.98995552]
[1748531091627,59.38995552,170.66,170.62,20.98995552]
[1748531091938,38.4,170.66,170.62,20.98995552]
[1748531092423,59.38995552,170.66,170.56,44.64964886]
[1748531092750,59.38995552,170.66,170.62,20.98995552]
[1748531093045,59.38995552,170.66,170.61,20.98995552]
[1748531093619,59.38995552,170.66,170.62,20.98995552]
[1748531093620,38.4,170.66,170.62,20.98995552]
[1748531093826,38.4,170.66,170.63,20.98995552]
[1748531096606,59.36995552,170.67,170.63,20.98995552]
[1748531098728,20.98995552,170.65,170.61,20.98995552]
[1748531099031,20.98995552,170.64,170.6,20.98995552]
[1748531100937,20.98995552,170.64,170.57,10.8]
[1748531101142,20.98995552,170.64,170.6,20.98995552]
[1748531101836,20.98995552,170.65,170.61,20.98995552]
[1748531102720,20.98995552,170.64,170.59,20.98995552]
[1748531102920,59.36995552,170.64,170.59,20.98995552]
[1748531103231,59.36995552,170.64,170.6,20.98995552]
[1748531103437,20.98995552,170.63,170.58,20.98995552]
[1748531103611,20.98995552,170.62,170.57,20.98995552]
[1748531104212,20.98995552,170.62,170.58,20.98995552]
[1748531104417,20.98995552,170.63,170.59,20.98995552]
[1748531104628,20.98995552,170.63,170.58,20.98995552]
[1748531104944,20.98995552,170.62,170.58,20.98995552]
[1748531105115,20.98995552,170.61,170.54,27.5671]
[1748531105312,20.98995552,170.6,170.56,20.98995552]
[1748531105511,20.98995552,170.6,170.55,20.98995552]
[1748531106218,20.98995552,170.6,170.56,20.98995552]
[1748531106650,20.98995552,170.6,170.55,20.98995552]
[1748531107147,20.98995552,170.6,170.56,20.98995552]
[1748531107349,59.34995552,170.6,170.55,20.98995552]
[1748531107650,38.36,170.6,170.55,20.98995552]
[1748531107945,59.34995552,170.6,170.55,20.98995552]
[1748531108257,158.1,170.63,170.59,20.98995552]
[1748531108426,147.3,170.63,170.6,20.98995552]
[1748531108753,147.3,170.63,170.59,20.98995552]
[1748531109933,185.66,170.63,170.56,5.86301288]
[1748531110127,147.3,170.63,170.59,20.98995552]
[1748531110327,185.66,170.63,170.6,20.98995552]
[1748531110640,185.66,170.63,170.59,20.98995552]
[1748531111141,185.66,170.63,170.6,20.98995552]
[1748531112052,147.3,170.63,170.6,20.98995552]
[1748531112226,185.66,170.63,170.6,20.98995552]
[1748531116747,206.64995552,170.63,170.59,20.98995552]
[1748531117449,206.64995552,170.63,170.55,31.86336481]
[1748531117653,206.64995552,170.63,170.59,20.98995552]
[1748531117955,20.98995552,170.62,170.58,20.98995552]
[1748531118251,185.66,170.63,170.59,20.98995552]
[1748531118451,206.64995552,170.63,170.59,20.98995552]
[1748531119232,206.64995552,170.63,170.55,31.86331851]
[1748531119436,206.64995552,170.63,170.59,20.98995552]
[1748531119640,185.66,170.63,170.59,20.98995552]
[1748531120347,206.64995552,170.63,170.59,20.98995552]
[1748531120733,185.66,170.63,170.6,20.98995552]
[1748531121141,147.3,170.63,170.6,20.98995552]
[1748531121352,147.3,170.63,170.61,20.98995552]
[1748531121539,147.3,170.63,170.62,20.98995552]
[1748531121855,38.34,170.66,170.62,20.98995552]
[1748531122090,38.34,170.66,170.64,20.98995552]
[1748531123057,38.34,170.66,170.63,20.98995552]
[1748531124451,147.3,170.67,170.64,20.98995552]
[1748531124750,147.3,170.67,170.66,20.98995552]
[1748531125455,147.3,170.72,170.66,46.98995552]
[1748531125626,147.3,170.72,170.7,20.98995552]
[1748531125829,19.0373,170.77,170.69,26.0]
[1748531126030,40.02725552,170.77,170.73,20.98995552]
[1748531126327,33.38145552,170.77,170.73,20.98995552]
[1748531126528,38.32,170.76,170.73,20.98995552]
[1748531126933,38.32,170.76,170.72,20.98995552]
[1748531127132,38.32,170.76,170.67,33.44569528]
[1748531127355,38.32,170.76,170.72,20.98995552]
[1748531127356,59.30995552,170.76,170.72,20.98995552]
[1748531127560,20.98995552,170.75,170.67,27.5866]
[1748531127762,20.98995552,170.74,170.69,20.98995552]
[1748531128054,20.98995552,170.74,170.7,20.98995552]
[1748531128852,38.32,170.76,170.7,20.98995552]
[1748531129064,20.98995552,170.75,170.71,20.98995552]
[1748531129256,59.30995552,170.75,170.71,20.98995552]
[1748531129446,10.76,170.77,170.73,20.98995552]
[1748531129942,49.08,170.77,170.73,20.98995552]
[1748531130144,70.06995552,170.77,170.73,20.98995552]
[1748531130554,70.06995552,170.77,170.72,20.98995552]
[1748531131554,20.98995552,170.76,170.72,20.98995552]
[1748531132636,20.98995552,170.76,170.71,20.98995552]
[1748531134443,49.08,170.77,170.71,20.98995552]
[1748531134758,20.98995552,170.76,170.71,20.98995552]
[1748531134976,20.98995552,170.75,170.71,20.98995552]
[1748531135341,20.98995552,170.75,170.7,20.98995552]
[1748531135558,20.98995552,170.74,170.69,20.98995552]
[1748531135744,20.98995552,170.75,170.71,20.98995552]
[1748531135962,20.98995552,170.76,170.72,20.98995552]
[1748531136148,49.08,170.77,170.73,20.98995552]
[1748531136149,70.06995552,170.77,170.73,20.98995552]
[1748531136540,49.08,170.77,170.73,20.98995552]
[1748531136741,10.76,170.77,170.73,20.98995552]
[1748531137257,168.28995552,170.8,170.75,20.98995552]
[1748531137446,38.28,170.79,170.75,20.98995552]
[1748531137643,168.28995552,170.8,170.76,20.98995552]
[1748531137941,206.56995552,170.8,170.76,20.98995552]
[1748531138157,206.56995552,170.8,170.71,26.0]
[1748531138158,147.3,170.8,170.75,20.98995552]
[1748531138344,20.98995552,170.79,170.75,20.98995552]
[1748531139160,185.58,170.8,170.76,20.98995552]
[1748531139474,206.56995552,170.8,170.71,26.0]
[1748531139673,206.56995552,170.8,170.75,20.98995552]
[1748531139977,168.28995552,170.8,170.75,20.98995552]
[1748531140158,206.56995552,170.8,170.75,20.98995552]
[1748531140899,185.58,170.8,170.76,20.98995552]
[1748531141094,206.56995552,170.8,170.76,20.98995552]
[1748531141776,168.28995552,170.8,170.76,20.98995552]
[1748531141984,168.28995552,170.8,170.74,20.98995552]
[1748531141985,20.98995552,170.78,170.74,20.98995552]
[1748531142179,185.58,170.8,170.74,20.98995552]
[1748531142485,206.56995552,170.8,170.75,20.98995552]
[1748531142694,206.54995552,170.8,170.75,20.98995552]
[1748531143388,20.98995552,170.79,170.75,20.98995552]
[1748531143907,38.26,170.8,170.76,20.98995552]
[1748531144262,38.26,170.8,170.72,31.85728592]
[1748531144263,59.24995552,170.8,170.75,20.98995552]
[1748531144805,20.98995552,170.78,170.74,20.98995552]
[1748531145161,38.26,170.8,170.77,20.98995552]
[1748531145592,59.24995552,170.8,170.76,20.98995552]
[1748531146293,20.98995552,170.79,170.74,20.98995552]
[1748531146874,59.24995552,170.8,170.75,20.98995552]
[1748531147190,20.98995552,170.78,170.73,20.98995552]
[1748531147375,38.26,170.8,170.7,20.98995552]
[1748531147376,20.98995552,170.75,170.7,20.98995552]
[1748531147580,38.26,170.76,170.69,20.98995552]
[1748531147893,59.24995552,170.76,170.71,20.98995552]
[1748531149315,147.3,170.81,170.73,20.98995552]
[1748531149316,173.3,170.81,170.73,20.98995552]
[1748531149519,20.98995552,170.78,170.73,20.98995552]
[1748531149788,59.22995552,170.78,170.73,20.98995552]
[1748531150177,20.98995552,170.75,170.68,28.87334714]
[1748531150369,20.98995552,170.73,170.69,20.98995552]
[1748531150692,38.24,170.74,170.71,20.98995552]
[1748531151589,38.24,170.74,170.72,20.98995552]
[1748531152893,38.24,170.74,170.67,1.5866]
[1748531153083,59.22995552,170.74,170.7,20.98995552]
[1748531153290,59.22995552,170.74,170.69,20.98995552]
[1748531153472,38.24,170.74,170.7,20.98995552]
[1748531153674,59.22995552,170.74,170.7,20.98995552]
[1748531153867,59.22995552,170.74,170.69,20.98995552]
[1748531154068,20.98995552,170.72,170.67,22.57655552]
[1748531154292,20.98995552,170.73,170.68,20.98995552]
[1748531154476,20.98995552,170.73,170.69,20.98995552]
[1748531154681,59.22995552,170.74,170.7,20.98995552]
[1748531155677,59.22995552,170.74,170.69,20.98995552]
[1748531156274,20.98995552,170.73,170.69,20.98995552]
[1748531156770,20.98995552,170.73,170.67,1.5866]
[1748531156970,20.98995552,170.73,170.68,20.98995552]
[1748531157297,20.98995552,170.73,170.67,1.5866]
[1748531157298,20.98995552,170.73,170.69,20.98995552]
[1748531158394,20.98995552,170.72,170.67,20.98995552]
[1748531158580,20.98995552,170.73,170.68,20.98995552]
[1748531159497,20.98995552,170.73,170.65,17.3851]
[1748531159706,20.98995552,170.73,170.69,20.98995552]
[1748531159910,38.24,170.73,170.7,20.98995552]
[1748531160098,38.24,170.73,170.65,23.24499767]
[1748531160099,38.24,170.73,170.65,17.3851]
[1748531160398,38.24,170.73,170.69,20.98995552]
[1748531161084,38.24,170.73,170.66,20.98995552]
[1748531161085,20.98995552,170.71,170.66,20.98995552]
[1748531161287,38.24,170.73,170.63,1.5352]
[1748531161288,20.98995552,170.7,170.63,1.5352]
[1748531161590,20.98995552,170.7,170.66,20.98995552]
[1748531162300,20.98995552,170.7,170.65,20.98995552]
[1748531162509,20.98995552,170.68,170.63,20.98995552]
[1748531162684,59.20995552,170.68,170.63,20.98995552]
[1748531163506,38.22,170.68,170.65,20.98995552]
[1748531164090,38.22,170.68,170.6,26.0]
[1748531164297,59.20995552,170.68,170.63,20.98995552]
[1748531164497,38.22,170.68,170.65,20.98995552]
[1748531165781,38.22,170.68,170.6,31.86165145]
[1748531165782,38.22,170.68,170.64,20.98995552]
[1748531166195,38.22,170.68,170.6,26.0]
[1748531166196,59.20995552,170.68,170.6,31.8615663]
[1748531166509,59.20995552,170.68,170.64,20.98995552]
[1748531168109,59.20995552,170.68,170.63,20.98995552]
[1748531169703,59.20995552,170.68,170.6,26.0]
[1748531169912,59.20995552,170.68,170.64,20.98995552]
[1748531170096,20.98995552,170.68,170.64,20.98995552]
[1748531170403,59.20995552,170.68,170.64,20.98995552]
[1748531170607,38.22,170.68,170.64,20.98995552]
[1748531170983,38.22,170.68,170.65,20.98995552]
[1748531172396,38.22,170.68,170.64,20.98995552]
[1748531172795,59.20995552,170.68,170.64,20.98995552]
[1748531173583,59.20995552,170.68,170.63,20.98995552]
[1748531174596,38.22,170.68,170.64,20.98995552]
[1748531174795,38.22,170.68,170.65,20.98995552]
[1748531175188,38.22,170.69,170.66,20.98995552]
[1748531175391,20.98995552,170.73,170.68,20.98995552]
[1748531175715,148.8437,170.75,170.7,20.98995552]
[1748531175924,38.22,170.75,170.7,20.98995552]
[1748531176215,59.20995552,170.75,170.7,20.98995552]
[1748531176814,59.20995552,170.75,170.71,20.98995552]
[1748531177399,59.20995552,170.75,170.7,20.98995552]
[1748531177713,38.2,170.75,170.72,20.98995552]
[1748531178010,10.7,170.77,170.72,20.98995552]
[1748531178223,18.64964886,170.8,170.75,20.98995552]
[1748531178224,20.98995552,170.8,170.75,20.98995552]
[1748531178382,38.2,170.78,170.75,20.98995552]
[1748531178808,38.2,170.78,170.74,20.98995552]
[1748531179011,20.98995552,170.79,170.74,20.98995552]
[1748531179386,59.18995552,170.79,170.74,20.98995552]
[1748531179782,20.98995552,170.79,170.74,20.98995552]
[1748531179985,59.18995552,170.79,170.74,20.98995552]
[1748531181003,20.98995552,170.78,170.71,1.5585]
[1748531181199,147.3,170.78,170.74,20.98995552]
[1748531182011,147.3,170.78,170.75,20.98995552]
[1748531183291,147.3,170.78,170.76,20.98995552]
[1748531184391,147.3,170.78,170.71,1.5585]
[1748531184621,147.3,170.78,170.73,20.98995552]
[1748531184622,20.98995552,170.77,170.73,20.98995552]
[1748531186014,20.98995552,170.76,170.71,20.98995552]
[1748531186200,147.3,170.78,170.7,20.98995552]
[1748531186201,20.98995552,170.74,170.7,20.98995552]
[1748531186404,20.98995552,170.74,170.67,12.2372]
[1748531186587,20.98995552,170.73,170.68,20.98995552]
[1748531186792,20.98995552,170.72,170.67,20.98995552]
[1748531188196,20.98995552,170.71,170.63,1.5372]
[1748531188402,20.98995552,170.71,170.66,20.98995552]
[1748531189499,20.98995552,170.72,170.67,20.98995552]
[1748531189700,5.85757162,170.72,170.63,1.5372]
[1748531189892,20.98995552,170.67,170.62,20.98995552]
[1748531190090,38.18,170.68,170.64,20.98995552]
[1748531190319,38.18,170.68,170.65,20.98995552]
[1748531190691,38.18,170.68,170.66,20.98995552]
[1748531190895,59.16995552,170.7,170.66,20.98995552]
[1748531191313,59.16995552,170.7,170.65,20.98995552]
[1748531191506,20.98995552,170.7,170.65,20.98995552]
[1748531191710,20.98995552,170.69,170.65,20.98995552]
[1748531192424,59.16995552,170.7,170.65,20.98995552]
[1748531195712,147.3,170.69,170.65,20.98995552]
[1748531196914,147.3,170.69,170.66,20.98995552]
[1748531197111,147.3,170.69,170.68,20.98995552]
[1748531200810,147.3,170.69,170.67,20.98995552]
[1748531203412,147.3,170.69,170.68,20.98995552]
[1748531203621,147.3,170.69,170.67,20.98995552]
[1748531204827,147.3,170.69,170.68,20.98995552]
[1748531205138,38.16,170.73,170.65,7.8033]
[1748531205344,38.16,170.73,170.69,20.98995552]
[1748531205709,59.14995552,170.73,170.69,20.98995552]
[1748531205916,59.12995552,170.73,170.69,20.98995552]
[1748531206305,38.14,170.73,170.69,20.98995552]
[1748531206711,38.14,170.73,170.7,20.98995552]
[1748531206911,168.28995552,170.74,170.69,20.98995552]
[1748531207152,38.14,170.72,170.69,20.98995552]
[1748531207524,147.3,170.74,170.7,20.98995552]
[1748531207723,185.44,170.74,170.72,20.98995552]
[1748531208253,147.3,170.74,170.71,20.98995552]
[1748531208730,147.3,170.74,170.7,20.98995552]
[1748531209042,147.3,170.74,170.71,20.98995552]
[1748531209950,147.3,170.74,170.7,20.98995552]
[1748531210653,38.14,170.73,170.7,20.98995552]
[1748531211524,59.12995552,170.73,170.65,33.8033]
[1748531211730,20.98995552,170.72,170.68,20.98995552]
[1748531213068,20.98995552,170.71,170.66,20.98995552]
[1748531213641,20.98995552,170.71,170.67,20.98995552]
[1748531213861,20.98995552,170.72,170.67,20.98995552]